Cogmind - Beta 13 @@@ ROGUE MODE // 2024.07.03 @ 09:46:52 Player: OurFastestFox Result: Destroyed by P-60 Hacker with Shock Rifle Performance ------------- Evolutions (3) 1500 Regions Visited (7) 1400 Robots Destroyed (13) 65 Value Destroyed (231) 231 Prototype IDs (26) 520 Alien Tech Used (0) 0 Bonus (300) 300 TOTAL SCORE: 4016 Bonus ------- Aligned with FarCom 300 Cogmind --------- Core Integrity 0/700 Matter 300/300 Energy 100/100 System Corruption 8% Temperature Cool (0) Movement Hovering (50) Location -7/Storage Parts ------- > --- POWER (2) -------- (None) > --- PROPULSION (4) --- Cooled Aerolev Unit Improved Cesium-ion Thruster > --- UTILITY (4) ------ Improved Signal Interpreter Advanced Terrain Scan Processor Hacking Suite > --- WEAPON (3) ------- (None) > --- INVENTORY (5) ---- Enhanced Nuclear Core Medium Treads Improved Shield Generator Gatling Laser Latent Energy Streamer Peak State ------------ > --- POWER ------------ (None) > --- PROPULSION ------- Cooled Aerolev Unit Improved Cesium-ion Thruster > --- UTILITY ---------- Improved Signal Interpreter Advanced Terrain Scan Processor Hacking Suite Drone Bay > --- WEAPON ----------- (None) > --- INVENTORY -------- Enhanced Nuclear Core Medium Treads Improved Shield Generator Gatling Laser Latent Energy Streamer [Rating: 28] Favorites ----------- Power Light Ion Engine Engine Light Ion Engine Power Core Light Nuclear Core Propulsion Flight Unit Treads Light Treads Leg Aluminum Leg Hover Unit Improved Hover Unit Flight Unit Flight Unit Utility Advanced Terrain Scan Processor Device Drone Bay Storage Small Storage Unit Processor Advanced Terrain Scan Processor Hackware Hacking Suite Weapon Assault Rifle Energy Gun EM Pulse Gun Energy Cannon Latent Energy Streamer Ballistic Gun Assault Rifle Launcher EMP Blaster Slashing Weapon Axe Build | -11 -10 -10 -10 -9 -8 -7 -7 ------- Run | Yrd Mat Min Exi Min Mat Fac Sto Slots Evolved 6 | . . . . . 4 2 . Power 1 | . . . . . 1 . . Propulsion 2 | . . . . . 1 1 . Utility 2 | . . . . . 1 1 . Weapon 1 | . . . . . 1 . . Parts Attached 35 | 6 2 . 2 4 5 13 3 Power 5 | 1 . . . 1 1 2 . Engine 2 | 1 . . . 1 . . . Core 3 | . . . . . 1 2 . Reactor . | . . . . . . . . Propulsion 11 | 2 2 . . 3 . 3 1 Treads 1 | . . . . 1 . . . Leg 2 | 2 . . . . . . . Wheel . | . . . . . . . . Hover 3 | . 2 . . . . . 1 Flight 5 | . . . . 2 . 3 . Utility 13 | 1 . . 1 . 2 7 2 Device 3 | . . . . . . 2 1 Storage 1 | 1 . . . . . . . Processor 7 | . . . 1 . 1 4 1 Hackware 2 | . . . . . 1 1 . Protection . | . . . . . . . . Artifact . | . . . . . . . . Weapon 6 | 2 . . 1 . 2 1 . Energy Gun 1 | 1 . . . . . . . Energy Cannon 2 | . . . 1 . 1 . . Ballistic Gun 1 | 1 . . . . . . . Ballistic Cannon . | . . . . . . . . Launcher 1 | . . . . . 1 . . Special Weapon . | . . . . . . . . Impact Weapon . | . . . . . . . . Slashing Weapon 1 | . . . . . . 1 . Piercing Weapon . | . . . . . . . . Special Melee Weapon . | . . . . . . . . Unidentified Prototypes 4 | . . . 1 . . 2 1 Parts Lost 10 | . . . . 2 1 5 2 Power 3 | . . . . 1 1 1 . Propulsion 2 | . . . . . . 2 . Utility 3 | . . . . . . 1 2 Weapon 2 | . . . . 1 . 1 . Highest Loss Streak 2 | . . . . 1 1 2 1 To Critical Strikes . | . . . . . . . . Average Slot Usage (%) 56 | . 72 71 82 70 48 36 38 Engine 6 | . 14 14 14 11 3 . . Hover 9 | . 18 28 28 2 . . 4 Flight 7 | . . . . 21 18 6 7 Processor 14 | . . . 11 14 17 18 15 Hackware 2 | . . . . . 4 3 7 Energy Gun 1 | . 14 14 3 . . . . Energy Cannon 3 | . . . 10 5 . . . Ballistic Gun 5 | . 14 14 14 10 . . . Slashing Weapon 1 | . . . . . . 4 . Naked Turns 2 | . . . . . . 2 . Heaviest Build 15 | 12 12 7 15 15 7 5 6 Greatest Support 20 | 20 20 14 14 20 8 8 9 Greatest Overweight (x) 3 | 1 . . 1 3 . . . Average Overweight (x) . | . . . . . . . . Largest Inventory Capacity 8 | 8 8 5 5 5 5 5 5 Average Capacity 5 | 6 6 5 5 5 5 5 5 Most Carried 7 | 5 7 5 5 5 5 5 5 Average Carried 4 | 2 4 5 5 4 4 4 5 Final Capacity 8 | 8 5 5 5 5 5 5 5 Final Carried 5 | 4 5 5 5 5 4 5 5 Class Distribution -------------------- 91% | Mutant 8% | Scout Dominant Class ---------------- Mutant | -10/Materials Mutant | -10/Mines Mutant | -10/Exiles Mutant | -9/Mines Scout | -8/Materials Mutant | -7/Factory Mutant | -7/Storage Resources | -11 -10 -10 -10 -9 -8 -7 -7 ----------- Run | Yrd Mat Min Exi Min Mat Fac Sto Matter Collected 614 | 260 . 20 . 140 . 117 77 Remotely . | . . . . . . . . Salvage Created 385 | . . . . 128 86 117 54 Parts 25 | . . . . 7 5 9 4 Haulers Intercepted 1 | . . . . . . . 1 Recyclers Shooed 2 | . . . . . . 2 . Parts Field Recycled . | . . . . . . . . Retrieved Matter . | . . . . . . . . Parts Self-Destructed . | . . . . . . . . Prevented . | . . . . . . . . Kills | -11 -10 -10 -10 -9 -8 -7 -7 ------- Run | Yrd Mat Min Exi Min Mat Fac Sto Combat Hostiles Destroyed 9 | . . . . 5 3 1 . Melee 1 | . . . . . . 1 . Guns 5 | . . . . 5 . . . AOE 3 | . . . . . 3 . . Classes Destroyed 6 | . . . . 2 1 2 1 Builder 2 | . . . . . . 2 . Hauler 1 | . . . . . . . 1 Recycler 1 | . . . . . . 1 . Swarmer 6 | . . . . 3 2 1 . Grunt 2 | . . . . 2 . . . Sentry 1 | . . . . . 1 . . Best Kill Streak 3 | . . . . 3 2 2 1 Combat Bots Only 3 | . . . . 3 2 1 . Max Kills in Single Turn 2 | . . . . 1 2 1 1 Gunslinging . | . . . . . . . . Exploded 2 | . . . . . 2 . . Melee 1 | . . . . . . 1 . Uniques/NPCs Destroyed . | . . . . . . . . Combat | -11 -10 -10 -10 -9 -8 -7 -7 -------- Run | Yrd Mat Min Exi Min Mat Fac Sto Hostile Shots Fired 288 | . 9 . . 55 26 97 101 Missed 150 | . 5 . . 13 18 61 53 Damage Taken 1820 | . 32 . . 488 139 450 711 Core 872 | . 6 . . 115 37 280 434 Absorbed by Shields . | . . . . . . . . Core Remaining (%) 81 | 100 . . . 51 93 . . Volleys Fired 33 | . . . . 30 3 . . Largest 1 | . . . . 1 1 . . Hottest 60 | . . . . 20 60 . . Shots Fired 33 | . . . . 30 3 . . Gun 30 | . . . . 30 . . . Cannon 1 | . . . . . 1 . . Launcher 2 | . . . . . 2 . . Special . | . . . . . . . . Kinetic 30 | . . . . 30 . . . Thermal . | . . . . . . . . Explosive . | . . . . . . . . Electromagnetic 3 | . . . . . 3 . . Robot Hit Streak 4 | . . . . 4 1 . . Robot Miss Streak 3 | . . . . 3 1 . . Penetration Max . | . . . . . . . . Secondary Targets . | . . . . . . . . Shots Hit Robots 29 | . . . . 16 2 11 . Core Hits 15 | . . . . 7 3 2 3 Critical Kills . | . . . . . . . . Critical Parts Destroyed . | . . . . . . . . Critical Strikes . | . . . . . . . . Melee Attacks 13 | . . . . . . 13 . Impact . | . . . . . . . . Slashing 13 | . . . . . . 13 . Piercing . | . . . . . . . . Sneak Attacks 5 | . . . . . . 5 . Combat Hostiles . | . . . . . . . . Follow-up Attacks . | . . . . . . . . Damage Inflicted 1085 | . . . . 224 165 658 38 Guns 224 | . . . . 224 . . . Cannons 7 | . . . . . 7 . . Explosions 158 | . . . . . 158 . . Melee 658 | . . . . . . 658 . Ramming 38 | . . . . . . . 38 Kinetic 224 | . . . . 224 . . . Thermal . | . . . . . . . . Explosive . | . . . . . . . . Electromagnetic 165 | . . . . . 165 . . Impact . | . . . . . . . . Slashing 658 | . . . . . . 658 . Piercing . | . . . . . . . . Highest Corruption 8 | . . . . . 3 . 8 Average Corruption 4 | . . . . . 3 . 4 Corruption Purged . | . . . . . . . . Corruption Blocked . | . . . . . . . . Effects 4 | . . . . . 1 . 3 Matter Fused 2 | . . . . . 1 . 1 Heat Flow Errors 1 | . . . . . . . 1 Energy Discharges 1 | . . . . . . . 1 Overload Shots . | . . . . . . . . Overflow Damage 142 | . . . . . . 142 . Projectiles . | . . . . . . . . Explosions . | . . . . . . . . Melee 142 | . . . . . . 142 . Knockbacks . | . . . . . . . . Impact . | . . . . . . . . Kinetic . | . . . . . . . . Secondary . | . . . . . . . . Self-Inflicted Damage 65 | . . . . . 47 . 18 Shots 2 | . . . . . 2 . . Rammed 4 | . . . . . . . 4 Targets Rammed 4 | . . . . . . . 4 Kicked . | . . . . . . . . Crushed . | . . . . . . . . Highest Temperature 146 | . . . . 12 16 . 146 Average Temperature 52 | . . . . 12 12 . 85 Received Heat Transfer 459 | . . . . 219 27 75 138 Siege Activations . | . . . . . . . . Robots Corrupted . | . . . . . . . . Combat Hostiles . | . . . . . . . . Parts Fried . | . . . . . . . . Impact Corruptions . | . . . . . . . . Robots Melted . | . . . . . . . . Combat Hostiles . | . . . . . . . . Parts Melted . | . . . . . . . . Heat Transferred . | . . . . . . . . Parts Sabotaged . | . . . . . . . . Parts Stolen . | . . . . . . . . Parts Stripped . | . . . . . . . . Power Chain Reactions 1 | . . . . . 1 . . Latent Energy Used 200 | . . . . . 200 . . LE Corruption 3 | . . . . . 3 . . Alert | -11 -10 -10 -10 -9 -8 -7 -7 ------- Run | Yrd Mat Min Exi Min Mat Fac Sto Peak Influence 337 | . 45 17 . 100 273 337 323 Initial 123 | . . 17 . . 39 123 100 Average 144 | . 17 17 . 77 126 202 205 Maximum Alert Level 1 | . . . . . 1 1 1 Low Security (%) 64 | 100 100 100 . 100 81 38 47 Level 1 35 | . . . . . 18 61 52 Level 2 . | . . . . . . . . Level 3 . | . . . . . . . . Level 4 . | . . . . . . . . Level 5 . | . . . . . . . . High Security . | . . . . . . . . Max Security . | . . . . . . . . Squads Dispatched 6 | . . . . . . 3 3 Investigation 2 | . . . . . . 1 1 Extermination . | . . . . . . . . Reinforcement 4 | . . . . . . 2 2 Assault . | . . . . . . . . Garrison . | . . . . . . . . Intercept . | . . . . . . . . Searches Triggered . | . . . . . . . . Construction Impeded . | . . . . . . . . Haulers Reinforced . | . . . . . . . . Active Scanning Responses . | . . . . . . . . Cargo Convoy Interrupts . | . . . . . . . . Stealth | -11 -10 -10 -10 -9 -8 -7 -7 --------- Run | Yrd Mat Min Exi Min Mat Fac Sto Distress Signals 2 | . . . . . 1 . 1 Communications Jammed . | . . . . . . . . Distress Signals . | . . . . . . . . Times Spotted 99 | . 7 . . 28 14 25 25 Peak Tracking Total 17 | . 5 . . 17 7 5 12 Tactical Retreats 20 | . 1 . . 4 3 7 5 Traps | -11 -10 -10 -10 -9 -8 -7 -7 ------- Run | Yrd Mat Min Exi Min Mat Fac Sto Traps Triggered 3 | . . . . . . 2 1 Indirectly . | . . . . . . . . Trap Hack Attempts . | . . . . . . . . Triggered . | . . . . . . . . Disarmed . | . . . . . . . . Reprogrammed . | . . . . . . . . Reused . | . . . . . . . . Traps Extracted . | . . . . . . . . Installed . | . . . . . . . . Triggered . | . . . . . . . . Machines | -11 -10 -10 -10 -9 -8 -7 -7 ---------- Run | Yrd Mat Min Exi Min Mat Fac Sto Machines Disabled 1 | . . . . . 1 . . Max in Single Turn 1 | . . . . . 1 . . Machines Repaired . | . . . . . . . . Machines Dismantled . | . . . . . . . . Machines Sabotaged . | . . . . . . . . Overloaded Fab Kills . | . . . . . . . . Hacking | -11 -10 -10 -10 -9 -8 -7 -7 --------- Run | Yrd Mat Min Exi Min Mat Fac Sto Machines Accessed 12 | . . . 2 . 2 6 2 Terminals 9 | . . . . . 2 5 2 Fabricators . | . . . . . . . . Repair Stations . | . . . . . . . . Recycling Units . | . . . . . . . . Scanalyzers . | . . . . . . . . Garrison Access 1 | . . . . . . 1 . Total Hacks 26 | . . . 3 . 5 14 4 Successful 10 | . . . 3 . 2 3 2 Failed 16 | . . . . . 3 11 2 Catastrophic 4 | . . . . . 1 2 1 Database Lockouts . | . . . . . . . . Manual 6 | . . . 3 . 2 . 1 Terminals 19 | . . . . . 5 10 4 Fabricators . | . . . . . . . . Repair Stations . | . . . . . . . . Recycling Units . | . . . . . . . . Scanalyzers . | . . . . . . . . Garrison Access 4 | . . . . . . 4 . Terminal Hacks 10 | . . . 3 . 2 3 2 Record 2 | . . . 2 . . . . Open Door 2 | . . . . . . . 2 Open DSF 1 | . . . . . . 1 . Emergency Access Points 1 | . . . . . . 1 . Locate Traps 1 | . . . . . 1 . . Dispatch Records 1 | . . . . . . 1 . Zone Layout 1 | . . . . . 1 . . Derelict Proto ID Bank 1 | . . . 1 . . . . Fabricator Hacks . | . . . . . . . . Repair Station Hacks . | . . . . . . . . Recycling Unit Hacks . | . . . . . . . . Scanalyzer . | . . . . . . . . Garrison Access Hacks . | . . . . . . . . Unauthorized Hacks . | . . . . . . . . Terminals . | . . . . . . . . Fabricators . | . . . . . . . . Repair Stations . | . . . . . . . . Recycling Units . | . . . . . . . . Scanalyzers . | . . . . . . . . Garrison Access . | . . . . . . . . Data Cores Recovered . | . . . . . . . . Used . | . . . . . . . . Hacking Detections 10 | . . . . . 2 6 2 Full Trace Events 2 | . . . . . . 1 1 Feedback Events . | . . . . . . . . Feedback Blocked . | . . . . . . . . Robot Schematics Acquired . | . . . . . . . . Robots Built . | . . . . . . . . Authchips . | . . . . . . . . Time . | . . . . . . . . Total Robot Build Rating . | . . . . . . . . Part Schematics Acquired . | . . . . . . . . Parts Built . | . . . . . . . . Authchips . | . . . . . . . . Time . | . . . . . . . . Total Part Build Rating . | . . . . . . . . Parts Repaired . | . . . . . . . . Time . | . . . . . . . . Parts Recycled . | . . . . . . . . Recycled Matter . | . . . . . . . . Retrieved Matter . | . . . . . . . . Retrieved Components . | . . . . . . . . Parts Scanalyzed . | . . . . . . . . Part Schematics Acquired . | . . . . . . . . Parts Damaged . | . . . . . . . . Bothacking | -11 -10 -10 -10 -9 -8 -7 -7 ------------ Run | Yrd Mat Min Exi Min Mat Fac Sto Used RIF Installer . | . . . . . . . . Robots Hacked . | . . . . . . . . Non-combat . | . . . . . . . . Combat . | . . . . . . . . Robot Hacks Applied . | . . . . . . . . Relay Couplers Released . | . . . . . . . . Fabnet Peak Effective % . | . . . . . . . . Robots Rewired . | . . . . . . . . Allies Hacked . | . . . . . . . . Hacks Repelled . | . . . . . . . . Allies | -11 -10 -10 -10 -9 -8 -7 -7 -------- Run | Yrd Mat Min Exi Min Mat Fac Sto Total Allies 2 | . . . . 2 . . . Largest Group 2 | . . . . 2 1 . . Highest-Rated Group 58 | . . . . 58 31 . . Highest-Rated Ally 31 | . . . . 31 31 . . Total Orders . | . . . . . . . . Ally Attacks 3 | . . . . . 3 . . Total Damage 20 | . . . . . 20 . . Kills . | . . . . . . . . Allies Corrupted . | . . . . . . . . Allies Melted . | . . . . . . . . Intel | -11 -10 -10 -10 -9 -8 -7 -7 ------- Run | Yrd Mat Min Exi Min Mat Fac Sto Robot Analysis Total . | . . . . . . . . Derelict Logs Recovered 1 | . . . . 1 . . . Drone Launches 3 | . . . . . . . 3 Drone Recoveries 1 | . . . . . . . 1 Exploration | -11 -10 -10 -10 -9 -8 -7 -7 ------------- Run | Yrd Mat Min Exi Min Mat Fac Sto Turns Passed 1755 | 79 92 14 405 255 144 545 221 Spaces Moved 3056 | 55 123 25 424 418 348 1187 476 Core 157 | 7 . . . . . 150 . Treads 17 | . . . . 17 . . . Legs 69 | 48 21 . . . . . . Wheels . | . . . . . . . . Hover 855 | . 102 25 424 8 . . 296 Flight 1958 | . . . . 393 348 1037 180 Fastest Speed 35 | 50 56 56 56 37 37 35 35 Average Speed 51 | 115 66 56 94 44 37 39 44 Slowest Speed 280 | 120 120 56 116 280 37 50 50 Overloaded Moves . | . . . . . . . . Propulsion Burnouts . | . . . . . . . . Robots Hopped 11 | . . . . . 1 8 2 Cave-ins Triggered . | . . . . . . . . Exploration Rate (%) 38 | 5 20 6 71 67 34 35 69 Regions Visited 7 Branch Regions 4 Pre-discovered Areas 2 | . . . 1 1 . . . Known Exits Taken 1 | . . . . . . 1 . Unknown Exits Taken 6 | 1 1 1 1 1 1 . . Scrap Searched 1 | . . 1 . . . . . Spaces Dug . | . . . . . . . . Terrain Destroyed 31 | . . . . . 31 . . Melee . | . . . . . . . . Projectile . | . . . . . . . . AOE 31 | . . . . . 31 . . Terrain Rammed . | . . . . . . . . Walls Destroyed . | . . . . . . . . Machines Disabled . | . . . . . . . . Actions | -11 -10 -10 -10 -9 -8 -7 -7 --------- Run | Yrd Mat Min Exi Min Mat Fac Sto Total 3177 | 70 134 24 426 458 359 1224 482 Wait 15 | . . . . 3 1 10 1 Move 3027 | 54 122 24 423 417 345 1170 472 Hop 11 | . . . . . 1 8 2 Pick Up 21 | 10 5 . . 1 2 3 . Fast Attach 19 | . . . 2 1 1 12 3 Attach 14 | 6 2 . . 1 4 1 . Detach 4 | . . . . 1 1 2 . Swap 2 | . . . . 2 . . . Drop 14 | . 5 . 1 2 1 5 . Fire 33 | . . . . 30 3 . . Melee 13 | . . . . . . 13 . Ram 4 | . . . . . . . 4 Kick . | . . . . . . . . Crush . | . . . . . . . . Escape Stasis . | . . . . . . . . Rewire . | . . . . . . . . Trap . | . . . . . . . . Miscellaneous . | . . . . . . . . Route ------- -11/Scrapyard -10/Materials -10/Mines -10/Exiles -9/Mines -8/Materials -7/Factory -7/Storage History --------- Turn | Location | Event 23 | -11/Scrapyard | Discovered new exit (range 15) 80 | -11/Scrapyard | Entered Materials 168 | -10/Materials | Discovered new exit (range 8) 172 | -10/Materials | Entered Mines 183 | -10/Mines | Deemed a non-threat by the Exiles lab entrance 184 | -10/Mines | Discovered new exit (range 5) 186 | -10/Mines | Entered Exiles 204 | -10/Exiles | Met 8R-AWN 212 | -10/Exiles | Met EX-HEX 232 | -10/Exiles | Met EX-BIN 241 | -10/Exiles | Aligned with FarCom system 242 | -10/Exiles | Given EX-Vault access code 267 | -10/Exiles | Opened EX-Vault 269 | -10/Exiles | Found Prototype Processor 269 | -10/Exiles | Identified 0b10 Alert Chip 273 | -10/Exiles | Found Latent Energy Streamer 297 | -10/Exiles | Warned to stay clear of 0b10 Research branches 313 | -10/Exiles | Build established: Mutant 333 | -10/Exiles | Met EX-DEC 417 | -10/Exiles | Learned location of Zion (-6) 465 | -10/Exiles | Discovered new exit (range 11) 591 | -10/Exiles | Stole two prototypes: 0b10 Alert Chip, Latent Energy Streamer 591 | -10/Exiles | Entered Mines 708 | -9/Mines | Assembled infested the area 713 | -9/Mines | Assisted by a Guerilla fighting off Assembled 842 | -9/Mines | Discovered new exit (range 11) 846 | -9/Mines | Entered Materials 846 | -8/Materials | Accompanied by 1 ally 846 | -8/Materials | Evolved 4 slots: Power x1, Propulsion x1, Utility x1, Weapon x1 851 | -8/Materials | Led the pair of lost Derelicts to an unsafe place 983 | -8/Materials | Discovered new exit (range 20) 990 | -8/Materials | Entered Factory 990 | -7/Factory | Evolved 2 slots: Propulsion x1, Utility x1 992 | -7/Factory | FarCom data flow suspended 1516 | -7/Factory | Discovered new exit (range 12) 1534 | -7/Factory | Identified exit to Storage 1535 | -7/Factory | Entered Storage 1576 | -7/Storage | Core integrity fell below 50% 1698 | -7/Storage | Core integrity fell below 20% 1756 | -7/Storage | Destroyed by P-60 Hacker with Shock Rifle Last Messages --------------- Drone retrieved by Drone Bay. System corrupted: Heat flow error (+180). Drone released from Drone Bay. Drone destroyed. K-01 Serf collects debris. U-05 Engineer builds a Wall. K-01 Serf collects debris. System corrupted: Energy discharge (-24). O-24 Administrator uses terminal to summon reinforcements. ALERT: Hostiles spotted, dispatching reinforcements to Terminal S007. O-24 Administrator locks terminal. Door malfunctions. Slammed into R-06 Scavenger. K-01 Serf collects debris. Slammed into A-02 Transporter. A-02 Transporter destroyed. Acquired 22 matter. Drone Bay destroyed. Map ----- +----------------------------------------------------+ | ? ?????????# [[ + #?Y ##??????????? | | ? ????????????""" [[ # #""" #???????????? | | ? ????????????""" [[ / + #???????????? | | # #???????????""" ?# # """"" #?????###???? | | # #????????????"" ! ?# #?""""" ####### ###?? | | ???????????? ??# #??"""" ## #?? | | # "????###????########## #???? ## """ % #?? | | # #????# #????# # #######/### """ ! #?? | | # #???## #????# # # """ / #?? | | # #???#T #????# """" # + #?? | | # ######+###### "??"" # # #?? | | + "???"" # ########### " "" #?? | | #+##+##/####### "????" + #?????????# "R"" #?? | | = ! = #????# "???" # #?????????# """ #?? | | [#????# "??" # #?????????##########?? | | ! [ #????# ? # #????????????????????? | | ############### #????????????????????? | | ########### # # #????????????????????? | | # ## # """ # #????????????????????? | | # ## # """ # #????????????????????? | | + ## # """ # #????????????????????? | | #|] ## # # #????????????????????? | | # ] ## / """ # +????????????????????? | | / ## # """ # #????????????????????? | | # ] ## # """ # #????????????????????? | | # ## # # @ #????????????????????? | | # ## ### ###### #????????????????????? | | ####/##### ######### #????????????????????? | | T # # #????????????????????? | | "" # # #????????????????????? | | # #* #????????????????????? | | # """ ## # #p! #????????????????????? | | # """ ######## /%!!+????????????????????? | | # """ #??????# #!= #????????????????????? | | # ######## # ###??????????????????? | | + # # ?????????????????? | | #"T"#############+#### # """ #??????????????? | | #######T######?# # # """ #??????????????? | | #????# "]]]]#?# # # """ #??????????????? | | ###### #?# + # """ #??????????????? | | + "]]]]#?# # # """ #??????????????? | | #########?# # # #??????????????? | | ####+#+#?????????# ?# + #??????????????? | | #?????????# ?# # #??????????????? | | #?????????# ??# # #??????????????? | | #?????????# ??# # #??????????????? | | #?????????# ???# # #??????????????? | | ! / #?????????# ???# ###########+######???? | | #?????????# ????# #???? | | ! #?????????##????# #???? | +----------------------------------------------------+ Best States ------------- Heat Dissipation 34 Energy Generation 14 Energy Capacity 160 Matter Stores 300 Matter Capacity 300 Sight Range 20 Terrain Scan Density 410 Evasion (%) 63 Melee Accuracy 5 Recoil Reduction 1 Offensive Hacking 10 Item Schematics ----------------- None Robot Schematics ------------------ None Fabricated ------------ Nothing Alien Tech Used ----------------- None Achievements -------------- Slippery One Challenges ------------ None Game ------ Seed SegregatorBeamCompactor Manual? 0 Play Time 00:54:44 Cumulative 7.2 hours Start 2024.05.12 @ 15:56:27 End 2024.07.03 @ 09:46:52 Sessions 6 Manual Loads 0 Difficulty Rogue Special Mode None Game No. 11 Rogue 11 Adventurer 0 Explorer 0 Win Type - Total 0 Types 0/0/0/0/0/0/0/0/0 Lore% 5 Gallery% 13 Achievement% 13 Wizard Run 0 Options --------- Layout 1 ASCII 0 Keyboard 0 Movement Mouse Keybinds 0 Fullscreen 1 Font 48/Smallcaps Map View 50x35 Zoom Use 0% Tactical HUD 0 Map Filters NONE Filters NONE Steam 1 RUN: bfabbd40-9ae5-43e2-b5da-c641fd6e9b13